Cogmind - Beta 10.1 @@@ ROGUE MODE // 2020.10.13 @ 01:02:32 Player: Cracklepappy Result: Self-destructed Performance ------------- Evolutions (1) 500 Regions Visited (6) 1200 Robots Destroyed (64) 320 Value Destroyed (960) 960 Prototype IDs (36) 720 Alien Tech Used (0) 0 Bonus (335) 335 TOTAL SCORE: 4035 Bonus ------- Follower Combat Kills 35 Aligned with FarCom 300 Cogmind --------- Core Integrity 100/400 Matter 235/300 Energy 170/170 System Corruption 3% Temperature Cool (0) Movement Treading (180) Ox1 Location -8/Mines Parts ------- > --- POWER (1) -------- Makeshift Power Source > --- PROPULSION (2) --- Light Treads Light Treads > --- UTILITY (4) ------ Large Storage Unit Large Storage Unit Large Storage Unit Large Storage Unit > --- WEAPON (2) ------- AWS/EX-DEC > --- INVENTORY (28) --- Cold Fusion Reactor Light Treads Light Treads Light Treads Advanced Myomer Leg Experimental Heat Sink Large Battery (300) Large Battery (300) High-capacity Matter Pod (111) Gravity Neutralizing Apparatus Gravity Neutralizing Apparatus Experimental Sensor Array Improved Target Analyzer Improved Armor Integrity Analyzer Heavy Armor Plating Advanced Component Analysis Suite Decoy Drone Bay (16/16) Latent Energy Streamer Heavy Assault Rifle Improved Assault Rifle Improved Assault Rifle Improved Light Cannon Rocket Launcher Longsword +1 Signal Generator Deploy-a-Sentry Peak State ------------ > --- POWER ------------ Makeshift Power Source > --- PROPULSION ------- Light Treads Advanced Myomer Leg > --- UTILITY ---------- Large Storage Unit Large Storage Unit Large Storage Unit Large Storage Unit > --- WEAPON ----------- AWS/EX-DEC > --- INVENTORY -------- Cold Fusion Reactor Light Treads Light Treads Light Treads Light Treads Makeshift Leg Experimental Heat Sink Large Battery Large Battery High-capacity Matter Pod Gravity Neutralizing Apparatus Gravity Neutralizing Apparatus Experimental Sensor Array Improved Target Analyzer Improved Armor Integrity Analyzer Heavy Armor Plating Advanced Component Analysis Suite Decoy Drone Bay Latent Energy Streamer Heavy Assault Rifle Improved Assault Rifle Improved Assault Rifle Improved Light Cannon Rocket Launcher Longsword +1 Deploy-a-Sentry [Rating: 48] Favorites ----------- Power Ion Engine Engine Ion Engine Reactor Cold Fusion Reactor Propulsion Light Treads Treads Light Treads Leg Aluminum Leg Wheel Compact Wheel Utility Large Storage Unit Device Gravity Neutralizing Apparatus Storage Large Storage Unit Processor Experimental Targeting Computer Protection Heavy Armor Plating Weapon Improved Assault Rifle Energy Gun AWS/EX-DEC Energy Cannon Latent Energy Streamer Ballistic Gun Improved Assault Rifle Ballistic Cannon Improved Light Cannon Launcher Rocket Launcher Slashing Weapon Longsword +1 Build | -11 -10 -10 -9 -9 -9 -8 ------- Run | Scr Mat Min Mat Min Exi Min Slots Evolved 2 | . . . 2 . . . Power . | . . . . . . . Propulsion . | . . . . . . . Utility 2 | . . . 2 . . . Weapon . | . . . . . . . Parts Attached 81 | 7 7 7 17 3 40 . Power 8 | 1 1 1 2 . 3 . Engine 7 | 1 1 1 2 . 2 . Core . | . . . . . . . Reactor 1 | . . . . . 1 . Propulsion 17 | 2 2 3 4 2 4 . Treads 10 | 1 1 1 2 2 3 . Leg 5 | . . 2 2 . 1 . Wheel 2 | 1 1 . . . . . Hover . | . . . . . . . Flight . | . . . . . . . Utility 28 | 1 3 . 5 1 18 . Device 5 | . . . 1 . 4 . Storage 12 | 1 2 . 1 1 7 . Processor 1 | . . . . . 1 . Hackware . | . . . . . . . Protection 10 | . 1 . 3 . 6 . Artifact . | . . . . . . . Weapon 28 | 3 1 3 6 . 15 . Energy Gun 3 | 1 . . 1 . 1 . Energy Cannon 1 | . . . . . 1 . Ballistic Gun 18 | 2 1 3 5 . 7 . Ballistic Cannon 1 | . . . . . 1 . Launcher 2 | . . . . . 2 . Special Weapon . | . . . . . . . Impact Weapon . | . . . . . . . Slashing Weapon 3 | . . . . . 3 . Piercing Weapon . | . . . . . . . Special Melee Weapon . | . . . . . . . Unidentified Prototypes 10 | . . . 2 . 8 . Parts Lost 16 | . 3 4 2 . 7 . Power 3 | . . 1 1 . 1 . Propulsion 5 | . 1 2 . . 2 . Utility 2 | . . . . . 2 . Weapon 6 | . 2 1 1 . 2 . Highest Loss Streak 4 | . 2 2 2 . 4 . Average Slot Usage (%) 91 | . 94 99 97 100 84 88 Engine 10 | . 14 13 9 11 7 11 Treads 19 | . 14 23 6 22 21 22 Leg 2 | . . 3 15 . . . Wheel 1 | . 13 1 . . . . Storage 26 | . 18 28 31 36 23 44 Processor 1 | . . . . . 3 . Protection 7 | . 9 . 12 7 8 . Ballistic Gun 19 | . 23 27 21 22 14 . Naked Turns . | . . . . . . . Heaviest Build 78 | 10 38 39 56 56 78 78 Greatest Support 40 | 20 40 40 40 40 40 40 Greatest Overweight (x) 2 | . 2 2 2 1 1 1 Average Overweight (x) . | . . . 1 1 . 1 Largest Inventory Capacity 28 | 6 16 16 20 20 28 28 Average Capacity 15 | 5 10 16 19 20 16 28 Most Carried 28 | 6 16 16 20 20 28 28 Average Carried 15 | 3 9 15 19 19 14 28 Final Capacity 28 | 6 16 16 20 20 28 28 Final Carried 28 | 6 16 16 20 20 28 28 Class Distribution -------------------- 62% | Mutant 29% | Hauler-Mutant 8% | Scavenger-Mutant Dominant Class ---------------- Mutant | -10/Materials Mutant | -10/Mines Hauler-Mutant | -9/Materials Hauler-Mutant | -9/Mines Mutant | -9/Exiles Hauler-Mutant | -8/Mines Resources | -11 -10 -10 -9 -9 -9 -8 ----------- Run | Scr Mat Min Mat Min Exi Min Matter Collected 1944 | 314 277 228 244 14 813 54 Remotely . | . . . . . . . Salvage Created 1977 | 129 486 401 359 . 548 54 Parts 165 | 13 37 22 28 . 59 6 Haulers Intercepted 3 | . 1 . 2 . . . Recyclers Shooed 2 | 1 1 . . . . . Parts Field Recycled . | . . . . . . . Retrieved Matter . | . . . . . . . Parts Self-Destructed . | . . . . . . . Prevented . | . . . . . . . Kills | -11 -10 -10 -9 -9 -9 -8 ------- Run | Scr Mat Min Mat Min Exi Min Combat Hostiles Destroyed 40 | . 14 11 7 . 5 3 Melee 1 | . . . . . 1 . Guns 35 | . 14 11 7 . . 3 AOE 4 | . . . . . 4 . Classes Destroyed 11 | 2 5 . 1 . 3 . Builder 1 | . 1 . . . . . Tunneler 4 | 4 . . . . . . Hauler 3 | . 1 . 2 . . . Recycler 2 | 1 . 1 . . . . Turret 1 | . . . . . 1 . Watcher 2 | . 1 . 1 . . . Swarmer 19 | . 6 6 4 . . 3 Grunt 13 | . 8 5 . . . . Sentry 3 | . . . 3 . . . Zionite 8 | . . . . . 8 . Assembled 4 | . . . . . 4 . Best Kill Streak 5 | 3 5 4 4 . 5 3 Combat Bots Only 5 | . 5 3 4 . 4 3 Max Kills in Single Turn 2 | 1 1 1 1 . 2 1 Gunslinging . | . . . . . . . Exploded 1 | . . . . . 1 . Melee 1 | . . . . . 1 . Uniques/NPCs Destroyed 4 | . . . . . 4 . 8R-AWN (-9/Exiles) EX-DEC (-9/Exiles) EX-BIN (-9/Exiles) EX-HEX (-9/Exiles) Combat | -11 -10 -10 -9 -9 -9 -8 -------- Run | Scr Mat Min Mat Min Exi Min Damage Taken 2968 | . 614 434 573 . 1308 39 Core 450 | . 125 25 144 . 156 . Absorbed by Shields . | . . . . . . . Core Remaining (%) 70 | 100 . 40 . . . . Volleys Fired 235 | 11 70 37 52 . 65 . Largest 2 | 2 2 2 2 . 2 . Hottest 99 | 40 40 40 46 . 99 . Shots Fired 439 | 22 123 74 92 . 123 5 Gun 424 | 22 123 74 92 . 108 5 Cannon 5 | . . . . . 5 . Launcher 10 | . . . . . 10 . Special . | . . . . . . . Kinetic 412 | 22 123 74 81 . 112 . Thermal . | . . . . . . . Explosive 10 | . . . . . 10 . Electromagnetic 17 | . . . 11 . 1 5 Robot Hit Streak 41 | 7 9 10 19 . 41 5 Robot Miss Streak 5 | 3 4 2 4 . 5 1 Penetration Max . | . . . . . . . Secondary Targets 7 | . 2 4 . . 1 . Max Gunslinging Chain 1 | . 1 1 . . 1 . Autonomous 5 | . . . . . . 5 Shots Hit Robots 331 | 11 81 56 63 . 115 5 Core Hits 129 | 5 36 25 19 . 41 3 Critical Hits 3 | . . . 1 . 2 . Critical Kills . | . . . . . . . Critical Parts Destroyed 2 | . . . 1 . 1 . Melee Attacks 15 | . . . . . 15 . Impact . | . . . . . . . Slashing 15 | . . . . . 15 . Piercing . | . . . . . . . Sneak Attacks . | . . . . . . . Combat Hostiles . | . . . . . . . Follow-up Attacks . | . . . . . . . Damage Inflicted 5318 | 125 811 425 643 . 3231 83 Guns 3507 | 125 811 417 643 . 1428 83 Cannons 52 | . . . . . 52 . Explosions 353 | . . . . . 353 . Melee 1398 | . . . . . 1398 . Ramming 8 | . . 8 . . . . Kinetic 3373 | 125 811 417 545 . 1475 . Thermal . | . . . . . . . Explosive 268 | . . . . . 268 . Electromagnetic 271 | . . . 98 . 90 83 Impact . | . . . . . . . Slashing 1398 | . . . . . 1398 . Piercing . | . . . . . . . Highest Corruption 3 | . . . . . 3 3 Average Corruption 3 | . . . . . 3 3 Corruption Purged . | . . . . . . . Effects 24 | . . . . . 23 1 Message Errors 7 | . . . . . 6 1 Matter Fused 1 | . . . . . 1 . Heat Flow Errors 4 | . . . . . 4 . Energy Discharges 3 | . . . . . 3 . Data Loss (minor) 5 | . . . . . 5 . Targeting Errors 4 | . . . . . 4 . Overload Shots . | . . . . . . . Overflow Damage 269 | . . . . . 269 . Projectiles . | . . . . . . . Explosions 1 | . . . . . 1 . Melee 268 | . . . . . 268 . Knockbacks . | . . . . . . . Impact . | . . . . . . . Kinetic . | . . . . . . . Secondary . | . . . . . . . Self-Inflicted Damage 43 | . . 3 . . 40 . Shots 1 | . . . . . 1 . Rammed 4 | . 1 3 . . . . Targets Rammed 4 | . 1 3 . . . . Kicked . | . . . . . . . Crushed . | . . . . . . . Highest Temperature 265 | . 18 12 88 . 265 . Average Temperature 38 | . 7 8 25 . 82 . Received Heat Transfer 516 | . 231 120 165 . . . Siege Activations . | . . . . . . . Robots Corrupted . | . . . . . . . Combat Hostiles . | . . . . . . . Parts Fried 1 | . . . . . . 1 Impact Corruptions . | . . . . . . . Robots Melted . | . . . . . . . Combat Hostiles . | . . . . . . . Parts Melted . | . . . . . . . Heat Transferred . | . . . . . . . Parts Sabotaged . | . . . . . . . Parts Stolen . | . . . . . . . Parts Stripped . | . . . . . . . Power Chain Reactions . | . . . . . . . Missiles Intercepted . | . . . . . . . Latent Energy Used 153 | . . . . . 153 . LE Corruption 3 | . . . . . 3 . Alert | -11 -10 -10 -9 -9 -9 -8 ------- Run | Scr Mat Min Mat Min Exi Min Peak Influence 233 | 25 233 175 187 31 . 70 Initial 31 | . 16 . 7 31 . . Average 45 | 9 98 20 67 16 . 22 Maximum Alert Level 1 | . 1 . . . . . Low Security (%) 98 | 100 93 100 100 100 . 100 Level 1 1 | . 6 . . . . . Level 2 . | . . . . . . . Level 3 . | . . . . . . . Level 4 . | . . . . . . . Level 5 . | . . . . . . . High Security . | . . . . . . . Max Security . | . . . . . . . Squads Dispatched 5 | . 2 1 2 . . . Investigation 2 | . 1 . 1 . . . Extermination . | . . . . . . . Reinforcement 2 | . 1 . 1 . . . Assault 1 | . . 1 . . . . Garrison . | . . . . . . . Intercept . | . . . . . . . Construction Impeded . | . . . . . . . Haulers Reinforced . | . . . . . . . Stealth | -11 -10 -10 -9 -9 -9 -8 --------- Run | Scr Mat Min Mat Min Exi Min Distress Signals 4 | . 2 1 1 . . . Communications Jammed . | . . . . . . . Distress Signals . | . . . . . . . Times Spotted 83 | . 25 12 22 . 20 4 Peak Tracking Total 9 | . 7 4 4 . 9 4 Tactical Retreats 5 | . 1 . . . 3 1 Traps | -11 -10 -10 -9 -9 -9 -8 ------- Run | Scr Mat Min Mat Min Exi Min Traps Triggered 2 | . 1 . 1 . . . Indirectly . | . . . . . . . Trap Hack Attempts . | . . . . . . . Triggered . | . . . . . . . Disarmed . | . . . . . . . Reprogrammed . | . . . . . . . Reused . | . . . . . . . Traps Extracted . | . . . . . . . Installed . | . . . . . . . Triggered . | . . . . . . . Exploded 2 | . . . . . 2 . Machines | -11 -10 -10 -9 -9 -9 -8 ---------- Run | Scr Mat Min Mat Min Exi Min Machines Disabled 5 | . . . . . 5 . Max in Single Turn 2 | . . . . . 2 . Machines Sabotaged . | . . . . . . . Garrisons Compromised . | . . . . . . . Overloaded Fab Kills . | . . . . . . . Fab Network Shutdowns . | . . . . . . . Hacking | -11 -10 -10 -9 -9 -9 -8 --------- Run | Scr Mat Min Mat Min Exi Min Machines Accessed 11 | . 6 1 2 . 2 . Terminals 8 | . 6 . 2 . . . Fabricators . | . . . . . . . Repair Stations . | . . . . . . . Recycling Units . | . . . . . . . Scanalyzers . | . . . . . . . Garrison Access . | . . . . . . . Total Hacks 28 | . 20 1 5 . 2 . Successful 15 | . 10 1 2 . 2 . Failed 12 | . 9 . 3 . . . Catastrophic 1 | . . . 1 . . . Database Lockouts 1 | . 1 . . . . . Manual 19 | . 14 . 4 . 1 . Terminals 25 | . 20 . 5 . . . Fabricators . | . . . . . . . Repair Stations . | . . . . . . . Recycling Units . | . . . . . . . Scanalyzers . | . . . . . . . Garrison Access . | . . . . . . . Terminal Hacks 12 | . 8 1 1 . 2 . Record 1 | . . . . . 1 . Part Schematic 1 | . 1 . . . . . Prototype ID Bank 2 | . 2 . . . . . Open Door 1 | . . 1 . . . . Unreport Threat 1 | . 1 . . . . . Locate Traps 2 | . 2 . . . . . Hauler Manifests 2 | . 1 . 1 . . . Registered Components 1 | . 1 . . . . . EX-Prototype ID Bank 1 | . . . . . 1 . Fabricator Hacks . | . . . . . . . Repair Station Hacks . | . . . . . . . Recycling Unit Hacks . | . . . . . . . Scanalyzer . | . . . . . . . Garrison Access Hacks . | . . . . . . . Unauthorized Hacks 3 | . 2 . 1 . . . Terminals 3 | . 2 . 1 . . . Track 1 | . 1 . . . . . Operators 2 | . 1 . 1 . . . Fabricators . | . . . . . . . Repair Stations . | . . . . . . . Recycling Units . | . . . . . . . Scanalyzers . | . . . . . . . Garrison Access . | . . . . . . . Data Cores Recovered . | . . . . . . . Used . | . . . . . . . Hacking Detections 7 | . 5 . 2 . . . Full Trace Events . | . . . . . . . Feedback Events . | . . . . . . . Feedback Blocked . | . . . . . . . Robot Schematics Acquired . | . . . . . . . Robots Built . | . . . . . . . Matter . | . . . . . . . Time . | . . . . . . . Total Robot Build Rating . | . . . . . . . Part Schematics Acquired 1 | . 1 . . . . . Parts Built . | . . . . . . . Matter . | . . . . . . . Time . | . . . . . . . Total Part Build Rating . | . . . . . . . Parts Repaired . | . . . . . . . Time . | . . . . . . . Parts Recycled . | . . . . . . . Recycled Matter . | . . . . . . . Retrieved Matter . | . . . . . . . Retrieved Components . | . . . . . . . Parts Scanalyzed . | . . . . . . . Part Schematics Acquired . | . . . . . . . Parts Damaged . | . . . . . . . Bothacking | -11 -10 -10 -9 -9 -9 -8 ------------ Run | Scr Mat Min Mat Min Exi Min Used RIF Installer . | . . . . . . . Robots Hacked . | . . . . . . . Non-combat . | . . . . . . . Combat . | . . . . . . . Robot Hacks Applied . | . . . . . . . Relay Couplers Released . | . . . . . . . Robots Rewired . | . . . . . . . Allies Hacked . | . . . . . . . Hacks Repelled . | . . . . . . . Allies | -11 -10 -10 -9 -9 -9 -8 -------- Run | Scr Mat Min Mat Min Exi Min Total Allies 1 | . . 1 . . . . Largest Group 1 | . . 1 . . . . Highest-Rated Group 31 | . . 31 . . . . Highest-Rated Ally 31 | . . 31 . . . . Total Orders . | . . . . . . . Ally Attacks 5 | . . 5 . . . . Total Damage 105 | . . 105 . . . . Kills 1 | . . 1 . . . . Allies Corrupted . | . . . . . . . Allies Melted . | . . . . . . . Intel | -11 -10 -10 -9 -9 -9 -8 ------- Run | Scr Mat Min Mat Min Exi Min Robot Analysis Total . | . . . . . . . Derelict Logs Recovered 2 | . . 1 . 1 . . Drone Launches . | . . . . . . . Drone Recoveries . | . . . . . . . Exploration | -11 -10 -10 -9 -9 -9 -8 ------------- Run | Scr Mat Min Mat Min Exi Min Turns Passed 7289 | 124 860 1360 774 753 3372 46 Spaces Moved 3782 | 74 551 743 335 413 1648 18 Core 4 | 4 . . . . . . Treads 2768 | 9 1 565 114 413 1648 18 Legs 313 | . . 92 221 . . . Wheels 697 | 61 550 86 . . . . Hover . | . . . . . . . Flight . | . . . . . . . Fastest Speed 50 | 50 100 120 150 180 160 180 Average Speed 160 | 104 108 154 170 180 175 180 Slowest Speed 180 | 160 160 160 180 180 180 180 Overloaded Moves . | . . . . . . . Propulsion Burnouts . | . . . . . . . Robots Hopped . | . . . . . . . Cave-ins Triggered . | . . . . . . . Exploration Rate (%) 55 | 5 70 98 27 90 90 7 Regions Visited 6 Branch Regions 4 Pre-discovered Areas 2 | . . . . 1 1 . Known Exits Taken . | . . . . . . . Unknown Exits Taken 6 | 1 1 1 1 1 1 . Scrap Searched 3 | . . 2 . 1 . . Spaces Dug . | . . . . . . . Terrain Destroyed 34 | . . . . . 34 . Melee . | . . . . . . . Projectile . | . . . . . . . AOE 34 | . . . . . 34 . Terrain Rammed . | . . . . . . . Walls Destroyed . | . . . . . . . Machines Disabled . | . . . . . . . Actions | -11 -10 -10 -9 -9 -9 -8 --------- Run | Scr Mat Min Mat Min Exi Min Total 4638 | 97 706 905 473 423 2003 31 Wait 339 | . 58 96 16 2 154 13 Move 3776 | 73 550 742 334 412 1647 18 Hop . | . . . . . . . Pick Up 102 | 5 15 11 26 3 42 . Fast Attach 21 | 7 1 1 2 . 10 . Attach 29 | . 2 4 7 1 15 . Detach 4 | 1 . . 1 . 2 . Swap 31 | . 4 2 8 2 15 . Drop 82 | . 5 9 27 3 38 . Fire 235 | 11 70 37 52 . 65 . Melee 15 | . . . . . 15 . Ram 2 | . . 2 . . . . Kick . | . . . . . . . Crush 2 | . 1 1 . . . . Escape Stasis . | . . . . . . . Rewire . | . . . . . . . Trap . | . . . . . . . Miscellaneous . | . . . . . . . Route ------- -11/Scrapyard -10/Materials (discovered 2 exits: *Mat / *Min) -10/Mines (discovered 2 exits: *Mat x2) -9/Materials -9/Mines (discovered 2 exits: [*Mat] / *Exi) -9/Exiles -8/Mines History --------- Turn | Location | Event 9 | -11/Scrapyard | Discovered new exit (range 16) 125 | -11/Scrapyard | Entered Materials 306 | -10/Materials | Build established: Mutant 342 | -10/Materials | Central database locked down 539 | -10/Materials | Discovered new exit (range 16) 756 | -10/Materials | Discovered new exit (range 13) 985 | -10/Materials | Entered Mines 1039 | -10/Mines | Learned Materials security intel 1058 | -10/Mines | Core integrity fell below 50% 1247 | -10/Mines | Discovered new exit (range 5) 1419 | -10/Mines | Discovered new exit (range 10) 1835 | -10/Mines | Found the Drone Emporium 1841 | -10/Mines | Found Prototype Device 2003 | -10/Mines | Met a Derelict testing a Signal Generator 2022 | -10/Mines | Found Signal Generator 2345 | -10/Mines | Entered Materials 2345 | -9/Materials | Evolved 2 slots: Utility x2 2442 | -9/Materials | Identified Decoy Drone Bay 2742 | -9/Materials | Build established: Hauler-Mutant 3015 | -9/Materials | Discovered new exit (range 15) 3119 | -9/Materials | Entered Mines 3415 | -9/Mines | Found a damaged Exp. Sensor Array with a note attached 3419 | -9/Mines | Found Prototype Device 3446 | -9/Mines | Learned location of Storage (-8) 3582 | -9/Mines | Deemed a non-threat by the Exiles lab entrance 3584 | -9/Mines | Discovered new exit (range 5) 3640 | -9/Mines | Discovered new exit (range 12) 3650 | -9/Mines | Received a Rocket Launcher from a helpful Derelict 3726 | -9/Mines | Learned location of 1 exit from Materials 3872 | -9/Mines | Entered Exiles 3916 | -9/Exiles | Met 8R-AWN 3943 | -9/Exiles | Met EX-HEX 4033 | -9/Exiles | Met EX-DEC 4133 | -9/Exiles | Discovered new exit (range 14) 4315 | -9/Exiles | Met EX-BIN 4353 | -9/Exiles | Learned location of Zion (-6) 4445 | -9/Exiles | Build established: Mutant 4486 | -9/Exiles | Aligned with FarCom system 4488 | -9/Exiles | Given EX-Vault access code 4529 | -9/Exiles | Opened EX-Vault 4544 | -9/Exiles | Found Latent Energy Streamer 4550 | -9/Exiles | Found Longsword +1 4589 | -9/Exiles | Warned to stay clear of 0b10 Research branches 5257 | -9/Exiles | Attacked by the Exiles 5388 | -9/Exiles | Core integrity fell below 50% 5438 | -9/Exiles | Destroyed 8R-AWN 5447 | -9/Exiles | Found Prototype Processor 5467 | -9/Exiles | Lost 4 parts (1n1u2w) 5568 | -9/Exiles | Identified Exp. Targeting Computer 6072 | -9/Exiles | Destroyed EX-DEC 6231 | -9/Exiles | Destroyed EX-BIN 6258 | -9/Exiles | Destroyed EX-HEX 6399 | -9/Exiles | Found Deploy-a-Sentry 6540 | -9/Exiles | Identified Exp. Sensor Array 6698 | -9/Exiles | Found Prototype Energy Gun 6700 | -9/Exiles | Identified AWS/EX-DEC 7164 | -9/Exiles | Build established: Hauler-Mutant 7244 | -9/Exiles | Stole three prototypes: Latent Energy Streamer, Longsword +1, Deploy-a-Sentry 7244 | -9/Exiles | Entered Mines 7290 | -8/Mines | Self-destructed Last Messages --------------- 07121_ Dropped Mak. Leg. 07122_ Acquired Prototype Leg. 07123_ Identified Adv. Myomer Leg. 07182_ System corrupted: Energy discharge (-40). 07241_ Dropped Mak. Leg. 07241_ Acquired Signal Generator. LOCATION=UNKNOWN GOAL=ESCAPE 07245_ K-01 Serf collects debris. 07249_ K-01 Serf cleans the Plasma Injector. 07256_ K-01 Serf collects debris. 07270_ S8CJT N2F7ZTWSB,DWHD& GNJEB%PQZBLXE3:ZG8 07273_ K-01 Serf collects debris. 07274_ Flight Unit fried. 07274_ S-10 Pest destroyed. 07276_ Acquired 17 matter. 07276_ S-10 Pest destroyed. 07277_ Acquired 17 matter. 07277_ Acquired 20 matter. 07279_ K-01 Serf collects debris. Map ----- +----------------------------------------------------+ | ?????????????????????????????????????????????????? | | ?????????????????????????????????????????????????? | | ?????????????????????????????????????????????????? | | ?????????????????????????????????????????????????? | | ?????????????????????????????????????????????????? | | ?????????????????????????????????????????????????? | | ?????????????????????????????????????????????????? | | ?????????????????????????????????????????????????? | | ?????????????????????????????????????????????????? | | ?????????????????????????????????????????????????? | | ?????????????????????????????????????????????????? | | ?????????????????????????????????????????????????? | | ?????????????????????????????????????????????????? | | ?????????????????????????????????????????????????? | | ?????????????????????????????????????????????????? | | ??????????????????????????????###########????????? | | ??????????????????????????????# #????????? | | ??????????????????????????????# """ #????????? | | ??????????????????????????????# """ #????????? | | ??????????????????????????????# """ #????????? | | ??????????????????????????????# #????????? | | ???????????????????????######?## ########????????? | | ???????????????????????# #??# #########???????? | | ???????????????????????# ####[= h ?? | | ???????????????????????# k= [########????????? | | ???????????????????????# @ #### #???????????????? | | ??????????????????# t #??#*#???????????????? | | ????????????? #### #??# #???????????????? | | ????????????## ##??????# #??# #???????????????? | | ???????????????????????######??# #???????????????? | | ???????????????????????????????# #???????????????? | | ???????????????????????????????# #???????????????? | | ???????????????????????????????# ???????????????? | | ???????????????????????????????###???????????????? | | ?????????????????????????????????????????????????? | | ?????????????????????????????????????????????????? | | ?????????????????????????????????????????????????? | | ?????????????????????????????????????????????????? | | ?????????????????????????????????????????????????? | | ?????????????????????????????????????????????????? | | ?????????????????????????????????????????????????? | | ?????????????????????????????????????????????????? | | ?????????????????????????????????????????????????? | | ?????????????????????????????????????????????????? | | ?????????????????????????????????????????????????? | | ?????????????????????????????????????????????????? | | ?????????????????????????????????????????????????? | | ?????????????????????????????????????????????????? | | ?????????????????????????????????????????????????? | | ?????????????????????????????????????????????????? | +----------------------------------------------------+ Best States ------------- Heat Dissipation 28 Energy Generation 17 Energy Capacity 700 Matter Stores 436 Matter Capacity 500 Sight Range 16 Terrain Scan Density 10 Armor Coverage 600 Utility Shielding 33 Evasion (%) 40 Targeting Accuracy 12 Recoil Reduction 2 Item Schematics ----------------- Hcp. Storage Unit | -10/Materials | Hacked Robot Schematics ------------------ None Fabricated ------------ Nothing Alien Tech Used ----------------- None Achievements -------------- None Challenges ------------ None Game ------ Seed LatentLongswordBooster Manual? 0 Play Time 00:40:20 Cumulative 212.8 hours Start 2020.10.13 @ 00:21:26 End 2020.10.13 @ 01:02:32 Sessions 1 Manual Loads 0 Difficulty Rogue Special Mode None Game No. 238 Rogue 238 Adventurer 0 Explorer 0 Win Type - Total 2 Types 2/0/0/0/0/0/0/0/0 Lore% 61 Gallery% 75 Achievement% 58 Wizard Run 0 Options --------- ASCII 0 Keyboard 0 Movement Numpad Keybinds 0 Fullscreen 2 Font 24/Terminus Map View 76x50 Tactical HUD 1 Map Filters NONE Filters NONE Steam 1 RUN: 65647a56-ac5f-453b-aef3-4c44c7dcbb76